bitfinex/quotes_SOLUSD_20250728
["timestamp","ask_amount","ask_price","bid_price","bid_amount"]
[1753710853178,10.67432217,190.63,190.59,0.06]
[1753710853578,0.5235602,190.63,190.59,5.30685891]
[1753710853779,0.5235602,190.63,190.59,15.45762088]
[1753710854093,38.64,190.62,190.61,10.15076197]
[1753710854274,38.64,190.62,190.61,10.86076197]
[1753710854473,38.64,190.62,190.61,0.71]
[1753710854688,38.64,190.62,190.6,10.15076197]
[1753710854889,38.64,190.62,190.6,10.86076197]
[1753710856105,38.64,190.62,190.59,15.45762088]
[1753710856400,38.64,190.62,190.59,10.21076197]
[1753710857110,0.5235602,190.61,190.59,0.06]
[1753710857404,1.2335602,190.61,190.59,0.06]
[1753710857586,11.38432217,190.61,190.59,26.06]
[1753710857792,1.2335602,190.61,190.59,26.06]
[1753710857975,0.5235602,190.61,190.59,26.06]
[1753710858800,0.5235602,190.61,190.59,5.30683704]
[1753710859105,0.5235602,190.61,190.59,6.01668089]
[1753710859308,38.64,190.62,190.59,16.16744286]
[1753710859519,38.64,190.62,190.6,0.71]
[1753710859883,38.64,190.62,190.61,10.86076197]
[1753710860083,38.64,190.62,190.61,16.10707643]
[1753710860610,38.64,190.62,190.61,15.39707643]
[1753710860909,38.64,190.62,190.61,16.10707643]
[1753710861915,37.78,190.68,190.63,26.0]
[1753710862089,0.71,190.74,190.67,10.15076197]
[1753710862282,1.6088,190.75,190.72,10.15076197]
[1753710862283,0.5235602,190.75,190.72,10.15076197]
[1753710862483,38.64,190.74,190.72,10.86076197]
[1753710862899,38.64,190.74,190.73,10.15076197]
[1753710863311,38.64,190.74,190.72,10.15076197]
[1753710863815,0.5535602,190.77,190.76,26.0]
[1753710864025,38.65,190.77,190.76,42.1029511]
[1753710865017,49.51076197,190.77,190.72,10.86076197]
[1753710865186,38.65,190.77,190.76,10.15076197]
[1753710865694,38.65,190.77,190.73,26.0]
[1753710866011,11.38432217,190.76,190.73,26.0]
[1753710866189,1.2335602,190.76,190.73,26.0]
[1753710866385,1.2335602,190.76,190.72,10.15076197]
[1753710866386,0.5235602,190.76,190.72,10.15076197]
[1753710866620,0.5235602,190.76,190.72,26.0]
[1753710866787,10.15076197,190.73,190.67,104.79540694]
[1753710867112,39.1435602,190.72,190.67,41.39540694]
[1753710867309,49.29432217,190.72,190.67,10.15076197]
[1753710867621,0.71,190.71,190.69,26.0]
[1753710867827,0.5235602,190.7,190.65,10.15076197]
[1753710868120,1.2335602,190.7,190.65,15.39582218]
[1753710868334,1.2335602,190.7,190.65,36.15076197]
[1753710868505,1.2335602,190.7,190.65,10.15076197]
[1753710868818,0.5235602,190.7,190.66,10.86076197]
[1753710869016,0.5235602,190.7,190.66,10.15076197]
[1753710869516,6.3743,190.74,190.69,10.15076197]
[1753710869707,39.1235602,190.73,190.69,10.86076197]
[1753710869920,38.6,190.73,190.69,10.86076197]
[1753710870104,38.6,190.73,190.7,10.15076197]
[1753710870520,0.5535602,190.77,190.72,10.15076197]
[1753710870715,38.6,190.76,190.71,10.86076197]
[1753710870919,0.5235602,190.75,190.71,10.15076197]
[1753710871141,0.5235602,190.75,190.69,5.24403447]
[1753710871352,0.5235602,190.75,190.71,10.15076197]
[1753710871524,38.6,190.76,190.71,10.15076197]
[1753710871724,38.6,190.76,190.72,10.84076197]
[1753710872419,0.5535602,190.77,190.72,10.84076197]
[1753710872420,38.6,190.75,190.74,10.15076197]
[1753710872619,38.6,190.75,190.74,10.84076197]
[1753710873030,38.6,190.75,190.73,10.15076197]
[1753710873234,38.6,190.74,190.72,10.15076197]
[1753710873823,38.6,190.74,190.71,31.2434626]
[1753710874019,38.6,190.74,190.72,10.15076197]
[1753710874212,38.6,190.74,190.73,10.15076197]
[1753710874417,38.6,190.74,190.73,15.39377565]
[1753710874615,38.6,190.74,190.73,10.84076197]
[1753710874918,38.6,190.74,190.72,15.39400835]
[1753710875125,38.6,190.74,190.68,102.51049038]
[1753710875126,0.5235602,190.73,190.68,10.15076197]
[1753710875326,10.84076197,190.72,190.67,10.15076197]
[1753710875619,0.5235602,190.71,190.66,10.15076197]
[1753710875820,49.42076197,190.7,190.65,10.15076197]
[1753710876034,0.5235602,190.69,190.68,26.0]
[1753710876333,38.58,190.7,190.68,26.0]
[1753710876538,11.36432217,190.69,190.63,15.39646819]
[1753710876747,10.15076197,190.68,190.63,10.15076197]
[1753710876928,10.15076197,190.66,190.6,5.24634266]
[1753710877137,39.1035602,190.65,190.6,15.39710463]
[1753710877526,49.94432217,190.65,190.59,10.90076197]
[1753710878150,49.94432217,190.65,190.6,10.15076197]
[1753710878658,0.69,190.64,190.59,16.14758172]
[1753710879729,11.36432217,190.63,190.59,0.06]
[1753710879958,1.2135602,190.63,190.59,0.06]
[1753710880127,0.5235602,190.63,190.59,0.06]
[1753710880326,0.5235602,190.63,190.59,15.45762129]
[1753710880565,11.36432217,190.63,190.59,0.06]
[1753710880732,10.15076197,190.62,190.59,0.06]
[1753710881051,1.2135602,190.63,190.59,0.06]
[1753710881052,39.1035602,190.61,190.59,0.06]
[1753710881428,38.58,190.61,190.59,0.06]
[1753710883151,1.2135602,190.6,190.59,26.06]
[1753710883349,48.73076197,190.61,190.59,26.06]
[1753710883350,38.58,190.61,190.59,26.06]
[1753710883539,39.1035602,190.61,190.59,0.06]
[1753710883743,39.7935602,190.61,190.59,0.06]
[1753710884151,39.1035602,190.61,190.59,0.06]
[1753710884540,39.7935602,190.61,190.59,0.06]
[1753710885143,39.6858672,190.61,190.59,0.06]
[1753710885353,0.69,190.6,190.59,0.06]
[1753710885552,49.83662917,190.61,190.59,0.06]
[1753710885863,10.84076197,190.6,190.59,0.06]
[1753710886745,0.69,190.6,190.59,0.06]
[1753710886960,10.84076197,190.6,190.59,0.06]
[1753710887156,16.08735168,190.6,190.59,0.06]
[1753710888347,17.65975168,190.6,190.59,0.06]
[1753710888546,34.44443565,190.6,190.59,0.06]
[1753710888870,12.41316197,190.6,190.59,0.06]
[1753710889580,10.84076197,190.6,190.59,0.06]
[1753710889948,16.08735168,190.6,190.59,0.06]
[1753710890281,32.87203565,190.6,190.59,0.06]
[1753710890482,33.15635879,190.6,190.59,0.06]
[1753710890672,66.41546422,190.6,190.59,0.06]
[1753710890973,62.59829059,190.6,190.59,0.06]
[1753710891162,63.12185079,190.6,190.59,0.06]
[1753710892462,66.93679579,190.6,190.59,0.06]
[1753710892858,0.28432314,190.58,190.57,0.2]
[1753710893069,98.40113463,190.58,190.57,1e-08]
[1753710893257,101.84139248,190.58,190.57,1e-08]
[1753710893764,16.92684554,190.57,190.56,1e-08]
[1753710893955,34.17646908,190.57,190.56,1e-08]
[1753710894275,37.61482,190.57,190.56,1e-08]
[1753710894581,16.78468397,190.53,190.45,0.69]
[1753710894764,81.43856088,190.52,190.45,0.69]
[1753710894963,82.41288402,190.52,190.45,0.69]
[1753710895181,72.26212205,190.52,190.45,0.69]
[1753710895690,39.0835602,190.52,190.47,0.69]
[1753710895852,54.48311494,190.52,190.47,0.69]
[1753710896450,72.24212205,190.52,190.44,26.69]
[1753710896655,72.24212205,190.52,190.44,26.0]
[1753710896972,72.24212205,190.52,190.43,10.84076197]
[1753710897187,72.24212205,190.52,190.43,0.69]
[1753710897376,82.39288402,190.52,190.43,0.69]
[1753710897696,82.39288402,190.52,190.4,0.89]
[1753710897914,0.28432314,190.5,190.4,0.89]
[1753710898099,10.15076197,190.45,190.4,11.04076197]
[1753710898409,39.1035602,190.44,190.41,0.69]
[1753710898578,38.58,190.43,190.4,0.2]
[1753710898777,38.58,190.43,190.41,0.69]
[1753710898778,0.5235602,190.42,190.41,0.69]
[1753710899375,0.5235602,190.42,190.4,0.2]
[1753710899612,48.71076197,190.41,190.4,0.2]
[1753710899910,49.40076197,190.41,190.4,0.2]
[1753710900313,48.71076197,190.41,190.4,0.2]
[1753710901007,49.23432217,190.41,190.4,0.2]
[1753710901413,66.71900614,190.41,190.4,0.2]
[1753710901723,110.01211625,190.41,190.4,0.2]
[1753710901897,109.48855605,190.41,190.4,0.2]
[1753710902082,99.35779408,190.41,190.4,0.2]
[1753710902281,26.93544594,190.41,190.4,0.2]
[1753710902512,48.73076197,190.41,190.4,0.2]
[1753710902711,49.25432217,190.41,190.4,0.2]
[1753710902882,82.42591625,190.41,190.4,0.2]
[1753710903082,108.42591625,190.41,190.4,0.2]
[1753710903282,0.14216157,190.39,190.26,5.25594044]
[1753710903518,10.15076197,190.3,190.27,0.67]
[1753710903737,39.1035602,190.29,190.27,0.67]
[1753710904035,10.15076197,190.34,190.28,10.15076197]
[1753710904312,0.5235602,190.33,190.29,10.82076197]
[1753710904482,38.58,190.32,190.3,0.67]
[1753710904809,48.73650897,190.41,190.3,0.67]
[1753710904810,38.58,190.31,190.3,5.92486074]
[1753710905507,0.5235602,190.39,190.33,26.0]
[1753710905809,48.73076197,190.38,190.34,0.67]
[1753710905985,10.15076197,190.36,190.33,26.0]
[1753710906179,39.1035602,190.35,190.31,0.67]
[1753710906396,49.25432217,190.35,190.31,0.67]
[1753710906986,49.25432217,190.35,190.3,15.40556429]
[1753710907199,49.25432217,190.35,190.32,0.67]
[1753710907511,38.58,190.34,190.33,0.67]
[1753710907709,22.03672493,190.41,190.34,0.67]
[1753710907710,10.15076197,190.39,190.34,0.67]
[1753710907921,49.25432217,190.38,190.34,0.67]
[1753710908089,10.15076197,190.35,190.27,0.67]
[1753710908291,10.15076197,190.31,190.27,0.67]
[1753710908494,39.1035602,190.3,190.27,0.67]
[1753710908911,39.1035602,190.3,190.26,10.15076197]
[1753710909091,39.1035602,190.3,190.28,0.67]
[1753710909289,39.1035602,190.3,190.25,31.92620153]
[1753710909482,39.1035602,190.3,190.26,10.15076197]
[1753710909682,49.25432217,190.3,190.25,26.0]
[1753710909915,10.15076197,190.29,190.25,26.0]
[1753710910187,39.1035602,190.3,190.2,0.06]
[1753710910188,10.15076197,190.26,190.2,0.06]
[1753710910415,39.1035602,190.25,190.2,5.31756374]
[1753710910711,39.1035602,190.25,190.2,0.73]
[1753710910913,39.8035602,190.25,190.2,0.06]
[1753710911209,0.7,190.24,190.2,0.06]
[1753710911413,10.15076197,190.22,190.2,0.06]
[1753710911717,0.5235602,190.21,190.2,0.06]
[1753710911918,38.6,190.21,190.2,5.31762355]
[1753710912096,0.5235602,190.23,190.2,10.88076197]
[1753710912298,10.15076197,190.26,190.2,0.06]
[1753710912299,38.6,190.21,190.2,0.06]
[1753710913688,49.45076197,190.21,190.2,0.06]
[1753710915118,54.70810911,190.21,190.2,0.06]
[1753710915295,49.45076197,190.21,190.2,0.06]
[1753710915515,54.70810911,190.21,190.2,0.06]
[1753710916425,38.6,190.21,190.2,0.06]
[1753710916635,48.75076197,190.21,190.2,0.06]
[1753710916830,38.6,190.21,190.2,10.88076197]
[1753710917307,38.6,190.21,190.2,0.73]
[1753710918636,38.6,190.21,190.2,16.13838552]
[1753710918937,38.6,190.23,190.2,16.13838552]
[1753710919237,38.6,190.23,190.22,10.15076197]
[1753710919429,38.6,190.23,190.21,10.82076197]
[1753710919911,38.6,190.23,190.2,0.06]
[1753710920111,38.6,190.23,190.21,10.82076197]
[1753710920346,38.6,190.23,190.22,0.67]
[1753710920711,38.6,190.23,190.22,10.82076197]
[1753710921037,38.6,190.23,190.2,5.98753327]
[1753710921220,38.6,190.23,190.21,0.67]
[1753710921410,38.6,190.23,190.2,0.06]
[1753710921731,10.15076197,190.21,190.2,0.06]
[1753710922420,10.67432217,190.22,190.2,0.06]
[1753710922617,0.5235602,190.22,190.2,0.06]
[1753710922834,38.6,190.21,190.2,0.06]
[1753710923067,38.6,190.21,190.2,15.46838552]
[1753710923250,10.15076197,190.28,190.2,16.13838552]
[1753710923439,44.37934412,190.27,190.2,0.06]
[1753710923641,0.28432314,190.25,190.2,0.06]
[1753710923859,10.15076197,190.21,190.2,0.06]
[1753710924047,48.75076197,190.21,190.2,0.06]
[1753710924257,49.45076197,190.21,190.2,0.06]
[1753710925070,48.75076197,190.21,190.2,0.06]
[1753710925585,54.70810911,190.21,190.2,0.06]
[1753710927295,55.23166931,190.21,190.2,0.06]
[1753710928170,72.30067642,190.21,190.2,0.06]
[1753710928475,78.78347642,190.21,190.2,0.06]
[1753710928789,78.78347642,190.21,190.09,5.26060575]
[1753710928790,17.06900711,190.2,190.12,0.06]
[1753710928954,10.15076197,190.13,190.12,0.06]
[1753710929153,67.39246908,190.13,190.12,0.06]
[1753710929394,10.15076197,190.04,190.0,0.2]
[1753710929552,38.6,190.03,190.01,0.67]
[1753710929755,38.6,190.03,190.02,10.15076197]
[1753710929973,38.6,190.05,190.02,10.82076197]
[1753710930155,38.6,190.05,190.04,10.15076197]
[1753710930350,0.5235602,190.08,190.04,0.67]
[1753710930351,38.6,190.07,190.04,0.67]
[1753710930552,0.5235602,190.06,190.05,0.67]
[1753710931381,0.5235602,190.06,190.02,26.69]
[1753710931676,15.93587113,190.06,190.0,37.04076197]
[1753710931881,10.15076197,190.05,190.0,11.04076197]
[1753710932055,49.27432217,190.04,190.0,0.89]
[1753710932258,39.1235602,190.04,190.0,0.89]
[1753710932973,39.1235602,190.04,190.01,0.69]
[1753710933279,38.6,190.04,190.03,10.15076197]
[1753710933454,38.62,190.06,190.03,10.84076197]
[1753710933658,0.5235602,190.05,190.03,10.84076197]
[1753710933858,0.5235602,190.05,190.03,0.69]
[1753710934053,0.5235602,190.05,190.0,0.2]
[1753710934258,0.5235602,190.05,190.01,10.84076197]
[1753710934776,0.5235602,190.05,190.01,0.69]
[1753710934978,0.5235602,190.05,190.02,10.15076197]
[1753710935164,0.5235602,190.05,190.0,0.2]
[1753710935165,0.5235602,190.05,190.03,10.84076197]
[1753710935361,0.5235602,190.05,190.03,0.69]
[1753710935571,0.5235602,190.05,190.01,10.15076197]
[1753710935781,0.5235602,190.05,190.01,10.84076197]
[1753710936273,0.5235602,190.05,190.02,10.15076197]
[1753710936999,0.5235602,190.05,190.0,0.89]
[1753710937206,0.5235602,190.05,190.0,10.35076197]
[1753710937357,0.5235602,190.07,190.03,10.15076197]
[1753710937565,38.62,190.07,190.05,10.15076197]
[1753710937759,38.62,190.07,190.05,10.84076197]
[1753710937963,38.62,190.07,190.06,10.84076197]
[1753710938171,0.5235602,190.11,190.06,10.84076197]
[1753710938375,38.62,190.1,190.07,10.84076197]
[1753710938572,0.5235602,190.09,190.04,10.15076197]
[1753710938773,10.15076197,190.08,190.03,0.69]
[1753710938973,39.1435602,190.07,190.04,10.15076197]
[1753710939179,38.62,190.07,190.06,10.15076197]
[1753710939500,0.5235602,190.14,190.06,10.84076197]
[1753710939675,0.5235602,190.14,190.11,10.15076197]
[1753710939676,38.62,190.12,190.11,10.15076197]
[1753710939872,0.5235602,190.16,190.11,16.10087453]
[1753710940085,38.62,190.15,190.14,10.15076197]
[1753710940273,38.62,190.18,190.14,10.84076197]
[1753710940473,38.62,190.18,190.17,10.15076197]
[1753710940679,38.62,190.18,190.17,10.84076197]
[1753710940889,38.62,190.21,190.17,10.84076197]
[1753710941195,0.5235602,190.2,190.18,10.15076197]
[1753710941408,0.5235602,190.2,190.14,26.69]
[1753710941704,10.15076197,190.19,190.14,26.69]
[1753710941893,0.5235602,190.18,190.14,36.84076197]
[1753710942310,0.5235602,190.18,190.15,10.84076197]
[1753710942480,0.5235602,190.2,190.17,10.15076197]
[1753710942686,38.62,190.21,190.18,10.15076197]
[1753710943016,38.62,190.21,190.19,10.84076197]
[1753710943181,38.62,190.21,190.14,31.25922769]
[1753710943182,0.5235602,190.2,190.17,10.15076197]
[1753710943591,0.5235602,190.2,190.17,10.84076197]
[1753710944405,0.5235602,190.2,190.12,26.0]
[1753710944596,0.5235602,190.2,190.15,10.15076197]
[1753710944904,0.5235602,190.2,190.16,10.15076197]
[1753710945215,0.5235602,190.2,190.18,10.15076197]
[1753710945417,38.62,190.21,190.19,10.84076197]
[1753710945583,38.62,190.21,190.2,10.84076197]
[1753710946382,38.62,190.21,190.2,0.69]
[1753710946686,38.62,190.21,190.19,10.15076197]
[1753710946886,38.62,190.21,190.19,10.84076197]
[1753710947109,38.62,190.21,190.2,10.84076197]
[1753710947298,48.77076197,190.21,190.16,10.15076197]
[1753710947494,0.5235602,190.2,190.16,10.15076197]
[1753710947691,0.5235602,190.2,190.17,10.15076197]
[1753710947910,38.62,190.21,190.18,10.15076197]
[1753710948102,38.62,190.21,190.19,0.69]
[1753710948702,38.62,190.21,190.19,10.15076197]
[1753710948904,38.62,190.21,190.2,10.84076197]
[1753710949098,38.62,190.21,190.2,0.69]
[1753710949399,38.62,190.21,190.18,10.15076197]
[1753710949596,38.62,190.21,190.19,10.15076197]
[1753710949909,38.62,190.21,190.2,10.84076197]
[1753710950493,10.15076197,190.25,190.2,10.84076197]
[1753710950705,39.1235602,190.24,190.21,10.15076197]
[1753710950892,39.1235602,190.24,190.21,10.84076197]
[1753710951609,39.1235602,190.24,190.22,10.15076197]
[1753710951821,0.5235602,190.27,190.22,15.40779934]
[1753710952023,39.1235602,190.29,190.26,10.15076197]
[1753710952330,39.1235602,190.29,190.22,5.25703737]
[1753710952331,38.6,190.29,190.28,10.15076197]
[1753710952490,38.6,190.29,190.28,10.84076197]
[1753710953312,38.6,190.29,190.27,10.15076197]
[1753710953518,38.6,190.29,190.26,10.15076197]
[1753710954015,38.6,190.29,190.2,26.0]
[1753710954217,11.38432217,190.28,190.21,26.0]
[1753710954516,11.38432217,190.28,190.23,10.15076197]
[1753710954733,0.71,190.27,190.2,0.69]
[1753710955014,10.15076197,190.23,190.18,10.15076197]
[1753710955216,39.1035602,190.22,190.18,0.69]
[1753710955525,39.1035602,190.22,190.1,26.30193207]
[1753710955526,10.15076197,190.19,190.12,0.75]
[1753710955812,39.1035602,190.18,190.14,10.15076197]
[1753710956013,39.1035602,190.18,190.12,0.75]
[1753710956014,39.8135602,190.18,190.12,0.06]
[1753710956193,49.25432217,190.18,190.13,10.15076197]
[1753710956397,10.15076197,190.17,190.13,0.69]
[1753710956714,0.5235602,190.17,190.13,10.15076197]
[1753710956928,10.67432217,190.17,190.12,10.21076197]
[1753710957222,0.5235602,190.17,190.13,10.84076197]
[1753710957415,38.58,190.18,190.14,0.69]
[1753710957599,38.58,190.18,190.15,0.69]
[1753710957934,38.58,190.18,190.16,10.15076197]
[1753710958425,38.58,190.18,190.15,10.15076197]
[1753710958629,38.58,190.18,190.14,10.15076197]
[1753710958998,38.58,190.18,190.15,10.84076197]
[1753710959204,38.58,190.18,190.15,10.15076197]
[1753710960126,38.58,190.18,190.16,0.69]
[1753710960462,38.58,190.18,190.17,10.84076197]
[1753710960601,0.5535602,190.25,190.2,26.0]
[1753710960805,0.03,190.25,190.24,10.15076197]
[1753710961003,38.61,190.25,190.24,10.15076197]
[1753710961233,38.61,190.25,190.24,10.84076197]
[1753710961399,38.61,190.25,190.24,10.15076197]
[1753710961739,38.61,190.25,190.24,10.84076197]
[1753710961898,0.03,190.25,190.24,16.09728005]
[1753710962919,38.58,190.31,190.27,26.0]
[1753710963120,0.5235602,190.38,190.3,10.15076197]
[1753710963327,38.58,190.35,190.31,0.69]
[1753710963524,38.58,190.35,190.34,10.15076197]
[1753710965416,54.69430406,190.35,190.29,10.15076197]
[1753710965602,10.67432217,190.34,190.29,10.15076197]
[1753710965805,1.2335602,190.34,190.3,10.15076197]
[1753710966038,10.86076197,190.33,190.2,1.5165]
[1753710966213,1.2335602,190.32,190.24,10.15076197]
[1753710966413,10.15076197,190.3,190.24,10.15076197]
[1753710966621,39.0835602,190.29,190.25,10.15076197]
[1753710967027,49.23432217,190.29,190.22,0.69]
[1753710967233,10.15076197,190.25,190.17,5.2582307]
[1753710967420,49.94432217,190.24,190.18,10.15076197]
[1753710967733,10.15076197,190.22,190.16,10.15076197]
[1753710967915,5.25592821,190.27,190.19,10.15076197]
[1753710968120,39.0835602,190.26,190.2,10.15076197]
[1753710968426,49.23432217,190.26,190.2,10.15076197]
[1753710968606,10.15076197,190.25,190.2,10.15076197]
[1753710968806,0.5235602,190.24,190.2,10.15076197]
[1753710969003,38.56,190.26,190.23,10.15076197]
[1753710969741,38.56,190.26,190.22,10.15076197]
[1753710970335,39.0835602,190.26,190.22,10.15076197]
[1753710970512,39.7935602,190.26,190.22,10.15076197]
[1753710970717,39.7935602,190.26,190.2,31.25762355]
[1753710971048,39.27,190.26,190.22,10.15076197]
[1753710971210,39.0835602,190.26,190.22,10.15076197]
[1753710971416,38.56,190.26,190.23,10.15076197]
[1753710971824,38.56,190.26,190.22,10.84076197]
[1753710972048,38.56,190.26,190.23,10.15076197]
[1753710972844,38.56,190.26,190.24,10.15076197]
[1753710973141,0.03,190.27,190.24,10.15076197]
[1753710973343,0.03,190.27,190.26,10.15076197]
[1753710973845,0.03,190.27,190.26,10.84076197]
[1753710974017,0.03,190.27,190.26,16.09672749]
[1753710974214,7.1999,190.38,190.29,26.0]
[1753710974513,7.1999,190.38,190.3,0.69]
[1753710974514,38.56,190.34,190.3,0.69]
[1753710974729,38.56,190.34,190.31,0.69]
[1753710975122,38.56,190.34,190.32,0.69]
[1753710975542,38.56,190.34,190.33,10.15076197]
[1753710975744,38.56,190.34,190.33,10.84076197]
[1753710976041,38.56,190.38,190.33,10.84076197]
[1753710976343,38.56,190.38,190.36,10.15076197]
[1753710977747,38.56,190.38,190.37,10.15076197]
[1753710979145,38.56,190.38,190.33,0.69]
[1753710979354,38.56,190.38,190.36,10.15076197]
[1753710979525,39.27,190.38,190.33,5.25381069]
[1753710979730,39.27,190.38,190.35,10.15076197]
[1753710980046,39.27,190.38,190.36,10.15076197]
[1753710980357,39.27,190.38,190.33,5.25381069]
[1753710980358,38.56,190.38,190.37,10.15076197]
[1753710982452,38.56,190.38,190.37,16.09369047]
[1753710982652,0.03,190.39,190.37,16.09369047]
[1753710982855,0.03,190.39,190.38,10.15076197]
[1753710983153,0.03,190.39,190.38,10.84076197]
[1753710983338,0.03,190.39,190.38,16.09341455]
[1753710983751,0.03,190.39,190.38,16.6186798]
[1753710984051,0.03,190.39,190.38,16.09341455]
[1753710984534,0.03,190.39,190.37,26.0]
[1753710984733,0.71,190.38,190.35,10.15076197]
[1753710985236,38.57,190.39,190.37,10.15076197]
[1753710985439,38.57,190.39,190.38,10.15076197]
[1753710985958,38.57,190.39,190.37,10.15076197]
[1753710986363,38.57,190.39,190.38,10.15076197]
[1753710986654,38.57,190.39,190.38,36.84076197]
[1753710986859,38.57,190.39,190.38,36.15076197]
[1753710987240,38.57,190.39,190.36,10.15076197]
[1753710987635,38.57,190.39,190.33,31.25403246]
[1753710987830,38.57,190.39,190.37,10.15076197]
[1753710988031,38.57,190.39,190.38,10.15076197]
[1753710988339,38.57,190.39,190.38,10.84076197]
[1753710988960,0.03,190.39,190.38,10.84076197]
[1753710989339,0.03,190.39,190.38,16.09341455]
[1753710990739,1e-08,190.39,190.38,39.64082166]
[1753710991183,1e-08,190.39,190.38,33.16242166]
[1753710991690,1e-08,190.39,190.38,10.15076197]
[1753710991959,1e-08,190.39,190.38,36.15076197]
[1753710992546,1e-08,190.39,190.38,26.0]
[1753710992768,1e-08,190.39,190.38,42.09341455]
[1753710993475,1e-08,190.39,190.38,41.40341455]
[1753710993850,1e-08,190.39,190.38,36.15076197]
[1753710994049,1e-08,190.39,190.38,41.40341455]
[1753710994255,1e-08,190.39,190.38,32.87809852]
[1753710994454,1e-08,190.39,190.38,43.31318363]
[1753710994636,0.03,190.43,190.41,43.06900711]
[1753710994838,0.03,190.43,190.42,27.744924]
[1753710995079,0.03,190.43,190.42,28.434924]
[1753710995563,0.03,190.49,190.46,15.40120825]
[1753710995975,0.03,190.49,190.46,16.23336982]
[1753710996141,0.03,190.49,190.46,16.37553139]
[1753710996341,0.03,190.49,190.46,15.40120825]
[1753710998460,0.03,190.49,190.46,16.09120825]
[1753710998676,0.03,190.49,190.46,16.37553139]
[1753710999589,0.03,190.49,190.46,16.90057601]
[1753710999949,1e-08,190.49,190.48,53.21976908]
[1753711000148,38.5,190.57,190.52,26.0]
[1753711000351,0.1,190.59,190.56,10.15076197]
[1753711000564,0.1,190.59,190.58,10.15076197]
[1753711000778,0.1,190.59,190.55,0.28432314]
[1753711000975,0.79,190.59,190.53,0.28432314]
[1753711001384,0.1,190.59,190.56,26.0]
[1753711001594,0.1,190.59,190.58,15.39790227]
[1753711001952,0.1,190.59,190.58,16.08790227]
[1753711003158,0.1,190.59,190.58,10.15076197]
[1753711003363,0.1,190.59,190.58,15.39790227]
[1753711003764,0.1,190.59,190.58,33.15690938]
[1753711004285,39.17,190.71,190.62,10.15076197]
[1753711004456,39.17,190.71,190.68,10.15076197]
[1753711004659,39.17,190.71,190.7,10.15076197]
[1753711004873,39.17,190.71,190.69,10.15076197]
[1753711005381,38.48,190.71,190.7,10.15076197]
[1753711005589,0.03,190.73,190.72,31.24328859]
[1753711005778,0.03,190.73,190.72,69.30381964]
[1753711006087,0.03,190.77,190.76,36.15076197]
[1753711006257,0.03,190.77,190.76,26.0]
[1753711006456,0.03,190.77,190.76,36.15076197]
[1753711006657,0.03,190.77,190.71,5.93342107]
[1753711006877,0.69,190.76,190.74,36.15076197]
[1753711007080,0.69,190.75,190.74,10.15076197]
[1753711007466,0.03,190.77,190.74,10.15076197]
[1753711007766,0.03,190.77,190.76,15.3929511]
[1753711008075,0.03,190.77,190.76,15.67727424]
[1753711008269,0.03,190.77,190.76,16.36727424]
[1753711009396,0.03,190.77,190.76,10.43508511]
[1753711009556,0.03,190.77,190.76,15.67727424]
[1753711009757,0.03,190.77,190.76,33.15195821]
[1753711009984,0.03,190.77,190.76,33.67617712]
[1753711010179,0.03,190.77,190.76,33.15195821]
[1753711010882,0.03,190.77,190.76,36.43508511]
[1753711012375,0.03,190.77,190.76,41.67727424]
[1753711012579,0.03,190.77,190.76,33.15195821]
[1753711013654,0.03,190.77,190.76,122.55195821]
[1753711014552,0.03,190.77,190.76,32.46195821]
[1753711014874,0.03,190.77,190.76,10.43508511]
[1753711015982,0.03,190.77,190.76,36.43508511]
[1753711016164,0.03,190.77,190.75,10.15076197]
[1753711016367,0.03,190.77,190.76,10.15076197]
[1753711016682,7.1549,190.76,190.67,10.15076197]